Cogmind - Beta 10.2 @@@ ROGUE MODE // 2021.09.29 @ 17:14:49 Player: Finestep Result: Self-destructed Performance ------------- Evolutions (6) 3000 Regions Visited (24) 4800 Robots Destroyed (396) 1980 Value Destroyed (15967) 15967 Prototype IDs (52) 1040 Alien Tech Used (1) 200 Bonus (7577) 7577 TOTAL SCORE: 34564 Bonus ------- Triggered High Security 500 High Alert Combat Kills 3699 Follower Combat Kills 1914 Network Hubs Disabled 200 Met Imprinter 300 Destroyed Z-Imprinter 1000 Exposed GOLEM Chamber 500 Met Zhirov 300 Built Enhanced Grunts 300 A7 Reached Mainframe 300 Met R17 at Cetus 500 Friendly Fire -1936 Cogmind --------- Core Integrity 339/1150 Matter 173/300 Energy 850/1100 System Corruption 0% Temperature Cool (492) Movement Core (550) Ox10 Location -4/Warlord Parts ------- > --- POWER (2) -------- (None) > --- PROPULSION (4) --- (None) > --- UTILITY (10) ----- Large Storage Unit Large Storage Unit Zionite Biocell Advanced Signal Interpreter > --- WEAPON (3) ------- (None) > --- INVENTORY (16) --- Improved Heavy Treads Fusion Compressor Zionite Biocell (1000) Zionite Metafield Generator Long-range Sensor Array Long-range Sensor Array Advanced Terrain Scanner Long-range Terrain Scanner Experimental Terrain Scan Processor Advanced Particle Charger Improved Weapon Shielding Mobile Refinery Mk. CCLXVII Mini Drone Bay (3/3) GOLEM Unit Peak State ------------ > --- POWER ------------ Quantum Reactor Quantum Reactor > --- PROPULSION ------- Improved Medium Treads Centrium Heavy Treads > --- UTILITY ---------- Large Storage Unit High-capacity Storage Unit High-capacity Storage Unit Long-range Sensor Array Advanced Signal Interpreter Experimental Targeting Computer Experimental Phase Shifter Centrium Medium Armor Plating Centrium Medium Armor Plating > --- WEAPON ----------- EMDS Improved KE Penetrator > --- INVENTORY -------- Light Antimatter Reactor Experimental Heat Sink Experimental Heat Sink Improved Energy Well Zionite Biocell Zionite Biocell Zionite Metafield Generator Experimental Terrain Scan Processor Advanced Particle Charger Improved Transmission Jammer Zionite Weapon Casing Centrium Medium Armor Plating EM Dispersion Field Improved Hacking Suite Mobile Refinery Mk. CCLXVII GOLEM Unit EMDS Cooled Plasma Cannon Firepult Improved KE Penetrator Proton Missile Launcher [Rating: 130] Favorites ----------- Power Enhanced Nuclear Core Engine Heavy Ion Engine Power Core Enhanced Nuclear Core Reactor Quantum Reactor Propulsion Light Treads Treads Light Treads Leg Zionite Composite Leg I Wheel Armored Wheel Flight Unit Improved Flight Unit Utility High-capacity Storage Unit Device Long-range Sensor Array Storage High-capacity Storage Unit Processor Advanced Signal Interpreter Hackware Advanced Hacking Suite Protection Hardened Medium Armor Plating Weapon Improved KE Penetrator Energy Gun Improved EM Shotgun Energy Cannon Improved EM Pulse Cannon Ballistic Gun Improved KE Penetrator Ballistic Cannon Advanced Assault Cannon Launcher Proton Missile Launcher Slashing Weapon Katana Build | -11 -10 -9 -9 -8 -7 -7 -7 -7 -7 -6 -6 -6 -6 -6 -6 -5 -5 -5 -5 -4 -4 -4 -4 -4 ------- Run | Scr Mat Mat Sto Mat Fac Low Low Zio Dee Pro Fac Ext Cet Arc Hub Fac Upp Upp Zhi Pro Fac Upp Upp War Slots Evolved 12 | . . 2 . 2 2 . . . . . 2 . . . . 2 . . . . 2 . . . Power 1 | . . . . . . . . . . . 1 . . . . . . . . . . . . . Propulsion 2 | . . . . . 1 . . . . . . . . . . . . . . . 1 . . . Utility 8 | . . 1 . 2 1 . . . . . 1 . . . . 2 . . . . 1 . . . Weapon 1 | . . 1 . . . . . . . . . . . . . . . . . . . . . . Parts Attached 430 | 7 2 20 32 37 39 3 4 11 26 8 26 29 22 3 23 51 7 11 7 17 23 7 3 12 Power 26 | 1 . 3 1 2 1 . . 1 . 1 3 2 3 . 1 4 . . 2 . 1 . . . Engine 9 | 1 . 3 1 2 . . . . . . . 2 . . . . . . . . . . . . Core 10 | . . . . . 1 . . 1 . 1 2 . . . . 3 . . 1 . 1 . . . Reactor 7 | . . . . . . . . . . . 1 . 3 . 1 1 . . 1 . . . . . Propulsion 72 | 2 . 3 5 10 13 . . 1 5 . 4 7 2 . 3 5 . 3 . 4 5 . . . Treads 58 | 2 . 3 4 10 12 . . 1 2 . 4 4 2 . 3 5 . 3 . 1 2 . . . Leg 10 | . . . . . . . . . 3 . . 3 . . . . . . . 3 1 . . . Wheel 2 | . . . . . . . . . . . . . . . . . . . . . 2 . . . Hover . | . . . . . . . . . . . . . . . . . . . . . . . . . Flight 2 | . . . 1 . 1 . . . . . . . . . . . . . . . . . . . Utility 190 | 2 . 7 5 9 12 3 2 5 15 5 13 15 6 3 14 30 2 6 5 7 14 3 2 5 Device 86 | . . 1 3 2 3 3 1 . 5 5 6 11 . 2 7 14 2 3 1 4 7 2 2 2 Storage 22 | 2 . 3 2 3 1 . . . 1 . 2 . . . 3 1 . . 1 . 2 . . 1 Processor 12 | . . 2 . . 1 . . 4 . . 1 1 . . 2 . . . . 1 . . . . Hackware 6 | . . . . . 2 . . . . . 1 . . . . 2 . . . . 1 . . . Protection 64 | . . 1 . 4 5 . 1 1 9 . 3 3 6 1 2 13 . 3 3 2 4 1 . 2 Artifact . | . . . . . . . . . . . . . . . . . . . . . . . . . Weapon 142 | 2 2 7 21 16 13 . 2 4 6 2 6 5 11 . 5 12 5 2 . 6 3 4 1 7 Energy Gun 30 | . . 4 13 5 2 . . . . . 5 . 1 . . . . . . . . . . . Energy Cannon 40 | . . 1 2 5 6 . 1 1 . . 1 2 . . 2 7 2 1 . 1 1 1 1 5 Ballistic Gun 39 | 2 2 2 . . 2 . . . 2 1 . 3 8 . 2 5 . . . 3 2 3 . 2 Ballistic Cannon 11 | . . . . 3 2 . . 2 2 1 . . . . . . . . . 1 . . . . Launcher 12 | . . . . . 1 . 1 . 2 . . . 2 . 1 . 3 1 . 1 . . . . Special Weapon . | . . . . . . . . . . . . . . . . . . . . . . . . . Impact Weapon . | . . . . . . . . . . . . . . . . . . . . . . . . . Slashing Weapon 10 | . . . 6 3 . . . 1 . . . . . . . . . . . . . . . . Piercing Weapon . | . . . . . . . . . . . . . . . . . . . . . . . . . Special Melee Weapon . | . . . . . . . . . . . . . . . . . . . . . . . . . Unidentified Prototypes 37 | . . 4 2 . 2 . . 4 7 . 2 2 4 . 6 . . . 4 . . . . . Parts Lost 49 | . . 1 . 4 4 . . . 2 2 2 4 . . 1 1 . 1 . 8 . . . 19 Power 4 | . . . . . . . . . . 1 . 1 . . . . . . . . . . . 2 Propulsion 11 | . . . . . 1 . . . 1 . 2 1 . . 1 . . . . 3 . . . 2 Utility 18 | . . 1 . . . . . . 1 1 . . . . . 1 . 1 . 4 . . . 9 Weapon 16 | . . . . 4 3 . . . . . . 2 . . . . . . . 1 . . . 6 Highest Loss Streak 14 | . . 1 . 1 1 . . . 1 2 1 3 . . 1 1 . 1 . 5 . . . 14 Average Slot Usage (%) 97 | . 100 97 99 99 99 100 100 99 98 99 99 98 97 93 92 92 100 99 99 96 99 93 94 84 Engine 2 | . 14 10 11 8 1 . . . . . . 7 8 . . . . . . . . . . . Core 4 | . . . . . 5 7 7 7 7 7 12 4 . . . 3 5 5 5 5 7 10 10 9 Reactor 2 | . . . . . . . . . . . . . 4 13 13 7 5 5 5 5 2 . . . Treads 15 | . 28 22 21 18 23 23 23 23 17 . 10 18 18 13 13 12 17 17 17 11 1 5 5 4 Leg 2 | . . . . . . . . . 4 23 9 1 . . . . . . . 4 11 . . . Device 7 | . . 6 11 9 6 7 6 7 1 11 7 8 6 18 11 5 11 8 6 10 6 9 10 8 Storage 20 | . 28 22 22 27 23 23 23 23 23 23 20 20 20 20 20 17 17 17 17 17 15 15 15 15 Processor 7 | . . 1 . . 7 7 7 7 7 3 6 6 6 6 7 11 11 11 11 12 15 15 15 14 Protection 8 | . . . . 9 6 7 7 6 13 7 8 10 12 1 6 14 11 12 15 8 9 5 5 3 Energy Gun 5 | . . 11 31 16 . 7 7 1 . . 16 9 . . . . . . . . . . . . Energy Cannon 3 | . . . . 6 11 . 6 6 . . 1 1 . . 1 6 4 2 . . . . 3 3 Ballistic Gun 6 | . 28 21 . . 1 7 . . . 6 . 7 19 20 18 7 11 11 11 12 14 14 11 8 Ballistic Cannon 3 | . . . . 3 8 7 7 12 8 15 1 . . . . . . . . . . . . . Launcher 1 | . . . . . . . . . 12 . . . . . . . . 2 5 2 . . . . Naked Turns . | . . . . . . . . . . . . . . . . . . . . . . . . . Heaviest Build 164 | 15 19 54 81 106 117 113 122 121 124 118 124 125 137 137 153 164 153 155 157 143 140 107 103 103 Greatest Support 110 | 40 40 40 40 43 63 60 60 68 68 59 68 90 110 110 110 110 69 69 69 74 95 24 24 75 Greatest Overweight (x) 41 | . . 1 2 2 2 1 2 2 4 1 2 6 1 41 1 2 2 2 2 5 11 4 4 7 Average Overweight (x) 1 | . . . 1 2 1 1 1 1 1 1 1 1 1 12 1 1 2 2 1 1 3 3 4 4 Largest Inventory Capacity 26 | 8 8 20 24 26 26 26 26 26 26 26 26 24 24 24 26 26 26 26 26 26 26 24 24 24 Average Capacity 24 | 5 8 15 17 24 26 26 26 26 26 26 24 24 24 24 25 26 26 26 26 26 24 24 24 23 Most Carried 26 | 4 8 16 19 26 26 26 26 26 26 26 25 24 24 24 26 26 26 26 26 26 26 24 24 24 Average Carried 23 | 2 5 12 17 23 25 25 26 25 25 25 23 23 23 23 25 25 26 25 25 25 24 23 23 23 Final Capacity 26 | 8 8 16 18 26 26 26 26 26 26 26 24 24 24 24 26 26 26 26 26 26 24 24 24 16 Final Carried 26 | 4 8 16 18 26 26 26 26 26 26 26 24 24 24 24 26 26 26 26 26 26 24 24 24 16 Class Distribution -------------------- 21% | Hauler-Gunner 16% | Scavenger-Mutant 12% | Scavenger-Tank 12% | Hauler-Mutant 8% | Hauler-Tank 6% | Gunner 6% | Scavenger-Gunner 5% | Scavenger-Skirmisher 5% | Hauler-Skirmisher Dominant Class ---------------- Mutant | -10/Materials Gunner | -9/Materials Gunner | -9/Storage Hauler-Tank | -8/Materials Hauler-Gunner | -7/Factory Hauler-Gunner | -7/Lower Caves Hauler-Gunner | -7/Lower Caves Hauler-Gunner | -7/Zion Hauler-Mutant | -7/Deep Caves Hauler-Tank | -6/Proximity Caves Hauler-Skirmisher | -6/Factory Scavenger-Tank | -6/Extension Scavenger-Tank | -6/Cetus Scavenger-Gunner | -6/Archives Scavenger-Tank | -6/Hub_04(d) Scavenger-Mutant | -5/Factory Scavenger-Tank | -5/Upper Caves Scavenger-Mutant | -5/Upper Caves Scavenger-Mutant | -5/Zhirov Scavenger-Mutant | -4/Proximity Caves Scavenger-Gunner | -4/Factory Scavenger-Skirmisher | -4/Upper Caves Scavenger-Mutant | -4/Upper Caves Scavenger-Mutant | -4/Warlord Resources | -11 -10 -9 -9 -8 -7 -7 -7 -7 -7 -6 -6 -6 -6 -6 -6 -5 -5 -5 -5 -4 -4 -4 -4 -4 ----------- Run | Scr Mat Mat Sto Mat Fac Low Low Zio Dee Pro Fac Ext Cet Arc Hub Fac Upp Upp Zhi Pro Fac Upp Upp War Matter Collected 10185 | 300 78 835 320 467 1016 184 83 48 820 293 329 607 458 275 711 1661 172 345 . 494 431 190 68 . Remotely . | . . . . . . . . . . . . . . . . . . . . . . . . . Salvage Created 21285 | 111 389 1074 1601 2438 2317 88 154 . 1209 189 882 2212 310 404 1235 4123 246 932 . 682 361 123 . 205 Parts 922 | 3 22 65 80 117 109 6 6 . 32 5 27 96 14 22 57 146 13 35 . 29 26 9 . 3 Haulers Intercepted 24 | . 2 4 6 6 2 . . . . . 1 . . . 2 1 . . . . . . . . Recyclers Shooed 18 | . 2 3 1 . 2 . . . . . 3 4 . . . 3 . . . . . . . . Parts Field Recycled . | . . . . . . . . . . . . . . . . . . . . . . . . . Retrieved Matter . | . . . . . . . . . . . . . . . . . . . . . . . . . Parts Self-Destructed 52 | . . . . . . 7 1 2 . 4 . . . . . . 8 11 . 19 . . . . Prevented 48 | . . . . . . . 5 . . . . . . . . . 5 19 . 10 . 9 . . Kills | -11 -10 -9 -9 -8 -7 -7 -7 -7 -7 -6 -6 -6 -6 -6 -6 -5 -5 -5 -5 -4 -4 -4 -4 -4 ------- Run | Scr Mat Mat Sto Mat Fac Low Low Zio Dee Pro Fac Ext Cet Arc Hub Fac Upp Upp Zhi Pro Fac Upp Upp War Combat Hostiles Destroyed 297 | . 5 17 19 38 33 3 3 . 15 4 10 29 2 2 14 57 9 16 . 9 7 2 . 3 Guns 135 | . 5 17 15 19 5 2 . . . 1 4 19 2 2 12 14 2 4 . 5 7 . . . Cannons 86 | . . . . 15 28 1 1 . 4 3 2 3 . . . 24 . 1 . 2 . 2 . . AOE 37 | . . . 3 4 . . 1 . 3 . 1 2 . . 2 5 7 9 . . . . . . Classes Destroyed 23 | 2 3 4 2 1 4 1 . . 3 . . 1 . . . 2 . . . . . . . . Worker 10 | . . . 1 3 1 . . . . . . . . . 2 3 . . . . . . . . Builder 4 | . . . 1 . 2 . . . . . . . . . . 1 . . . . . . . . Tunneler 4 | 1 . . . . 1 . . . . . . . . . . 2 . . . . . . . . Hauler 24 | . 2 4 6 6 2 . . . . . 1 . . . 2 1 . . . . . . . . Recycler 29 | 1 1 4 3 3 7 . . . . . 2 4 . . . 4 . . . . . . . . Mechanic 1 | . . . . . 1 . . . . . . . . . . . . . . . . . . . Operator 11 | . 1 . 1 1 . . . . . . . . . 7 . . . . . . 1 . . . Watcher 18 | . . 3 2 4 2 . . . . . . 2 . . . 4 . . . . 1 . . . Swarmer 54 | . . 3 . 9 5 . . . . . 4 11 . . . 5 9 5 . . 3 . . . Saboteur 1 | . . . . . . . . . . . . . . . . 1 . . . . . . . . Grunt 110 | . 5 11 11 17 14 1 3 . . 2 2 4 2 . 5 22 . 5 . 6 . . . . Brawler 9 | . . . . . 3 . . . . 1 . 1 . . 1 2 . 1 . . . . . . Duelist 11 | . . 1 . 1 1 . . . . . . 3 . . 1 3 . 1 . . . . . . Protector 5 | . . . . . 1 . . . . . . . . . 2 2 . . . . . . . . Sentry 45 | . . 2 8 9 4 . . . . . 3 8 . 2 1 6 . 1 . 1 . . . . Demolisher 1 | . . . . . . . . . . . . . . . . 1 . . . . . . . . Hunter 18 | . . . . 2 1 . . . . . . . . . . 9 . 2 . 2 . 2 . . Programmer 19 | . . . . . 4 1 . . . 1 1 . . . 1 6 . 1 . . 4 . . . Behemoth 2 | . . . . . . . . . . . . 2 . . . . . . . . . . . . Enhanced Grunt 1 | . . . . . . . . . . . . . . . 1 . . . . . . . . . Lightning 3 | . . . . . . . . . . . . . . . 3 . . . . . . . . . Z-Light 5 | . . . . . . . . . 5 . . . . . . . . . . . . . . . Thief 1 | . . . . . . 1 . . . . . . . . . . . . . . . . . . Assembled 3 | . . . . . . . . . 3 . . . . . . . . . . . . . . . Golem 7 | . . . . . . . . . 7 . . . . . . . . . . . . . . . Thug 1 | . . . . . . . . . 1 . . . . . . . . . . . . . . . Savage 1 | . . . . . . . . . . . . . 1 . . . . . . . . . . . Bouncer 2 | . . . . . . . . . . . . . . . . . . . . . . . . 2 Guerrilla 2 | . . . . . . . . . 1 . . . 1 . . . . . . . . . . . Marauder 1 | . . . . . . . . . . . . . . . . . . . . . . . . 1 Best Kill Streak 10 | 1 4 9 6 8 6 1 3 . 4 1 3 5 1 3 6 10 5 5 . 3 4 2 . 3 Combat Bots Only 8 | . 3 5 3 5 5 1 3 . 4 1 3 5 1 1 6 8 5 5 . 3 3 2 . 3 Max Kills in Single Turn 5 | 1 1 2 2 5 3 1 1 . 2 1 2 2 2 2 2 5 2 4 . 2 1 1 . 1 Gunslinging 1 | . . 1 . . . . . . . . . 1 . 1 1 1 . . . . . . . . Exploded 5 | . . . 2 2 . . 1 . 2 . 1 1 . . 2 5 2 4 . . . . . . Melee . | . . . . . . . . . . . . . . . . . . . . . . . . . Uniques/NPCs Destroyed 2 | . . . . . . . . . 1 . . . 1 . . . . . . . . . . . Z-Imprinter (-7/Deep Caves) Revision 17 (-6/Cetus) Combat | -11 -10 -9 -9 -8 -7 -7 -7 -7 -7 -6 -6 -6 -6 -6 -6 -5 -5 -5 -5 -4 -4 -4 -4 -4 -------- Run | Scr Mat Mat Sto Mat Fac Low Low Zio Dee Pro Fac Ext Cet Arc Hub Fac Upp Upp Zhi Pro Fac Upp Upp War Damage Taken 19379 | . 150 728 472 1513 1915 128 208 . 1299 203 1042 1654 168 20 1066 2472 234 915 . 1049 320 158 . 3665 Core 2168 | . 48 129 36 103 189 14 . . 203 . 71 129 . . 85 164 33 106 . 47 . 73 . 738 Absorbed by Shields 508 | . . . . . . . . . . . . 63 41 . . . . . . . 11 . . 393 Reduced by Siege Mode 87 | . . . . . . . . . . . . . . . 84 3 . . . . . . . . Core Remaining (%) 70 | 100 80 . 58 81 . . . . . 42 . . . . 66 . . . . 65 . . . . Volleys Fired 945 | 15 41 58 54 99 90 9 6 . 66 15 44 81 13 20 40 135 17 36 . 27 20 4 23 32 Largest 3 | 2 2 3 3 3 3 3 3 . 3 3 3 3 3 3 3 3 3 3 . 3 3 1 1 1 Hottest 250 | 40 40 135 135 204 182 156 197 . 165 124 180 250 240 105 105 105 105 105 . 131 95 70 35 250 Shots Fired 2113 | 30 82 174 149 262 257 27 8 . 93 39 126 196 31 60 117 202 30 56 . 59 56 4 23 32 Gun 1317 | 30 82 172 145 134 24 18 1 . 13 11 98 166 28 60 116 77 20 22 . 45 55 . . . Cannon 719 | . . 2 4 128 231 9 2 . 46 28 28 30 . . . 125 3 12 . 11 1 4 23 32 Launcher 77 | . . . . . 2 . 5 . 34 . . . 3 . 1 . 7 22 . 3 . . . . Special . | . . . . . . . . . . . . . . . . . . . . . . . . . Kinetic 1021 | 30 82 154 . 23 123 18 1 . 56 39 11 54 27 60 116 77 20 22 . 53 55 . . . Thermal 344 | . . 2 4 104 85 9 1 . . . . 30 1 . . 42 3 12 . . 1 . 23 27 Explosive . | . . . . . . . . . . . . . . . . . . . . . . . . . Electromagnetic 748 | . . 18 145 135 49 . 6 . 37 . 115 112 3 . 1 83 7 22 . 6 . 4 . 5 Robot Hit Streak 27 | 5 16 10 10 14 17 18 15 . 23 27 14 15 6 10 8 27 6 19 . 12 12 2 . 17 Robot Miss Streak 8 | 3 5 6 4 4 3 3 . . 8 3 3 4 2 4 5 3 3 1 . 3 3 1 . . Penetration Max 1 | . . . . . . . . . . . . 1 1 1 1 1 . . . . . 1 . 1 Secondary Targets 18 | . . 4 . 1 . . . . . . . 3 . 1 2 2 1 . . 2 2 . . . Max Gunslinging Chain 1 | . . 1 . 1 . . . . . . . 1 . 1 1 1 1 . . 1 1 . . . Shots Hit Robots 1328 | 19 60 124 118 177 163 24 8 . 40 30 88 109 15 31 73 132 9 31 . 34 33 2 . 8 Core Hits 745 | 6 23 52 59 101 85 10 7 . 52 18 27 57 13 20 39 91 10 28 . 17 14 4 . 12 Critical Hits 132 | . . 3 5 7 9 . . . 1 1 . 15 11 6 21 28 2 4 . 11 7 . . 1 Critical Kills 57 | . . 3 2 2 6 . . . 1 1 . 8 3 3 8 11 1 1 . 5 2 . . . Critical Parts Destroyed 72 | . . . 2 5 3 . . . . . . 6 8 3 13 17 1 3 . 5 5 . . 1 Melee Attacks 15 | . . . 6 4 . . . 5 . . . . . . . . . . . . . . . . Impact . | . . . . . . . . . . . . . . . . . . . . . . . . . Slashing 15 | . . . 6 4 . . . 5 . . . . . . . . . . . . . . . . Piercing . | . . . . . . . . . . . . . . . . . . . . . . . . . Sneak Attacks 2 | . . . 1 1 . . . . . . . . . . . . . . . . . . . . Combat Hostiles . | . . . . . . . . . . . . . . . . . . . . . . . . . Follow-up Attacks . | . . . . . . . . . . . . . . . . . . . . . . . . . Damage Inflicted 37399 | 145 471 1541 2053 4280 4093 397 566 . 1891 406 2052 2748 305 955 2517 7535 527 1670 . 1165 1004 259 . 819 Guns 16940 | 145 471 1520 1504 1379 558 280 36 . 217 203 1365 1880 216 955 2132 1639 186 497 . 753 1004 . . . Cannons 12874 | . . 21 40 1877 3414 117 63 . 462 203 224 471 . . . 4951 . 129 . 207 . 259 . 436 Explosions 7245 | . . . 345 871 98 . 467 . 1212 . 463 397 89 . 385 945 341 1044 . 205 . . . 383 Melee 266 | . . . 135 131 . . . . . . . . . . . . . . . . . . . . Ramming 74 | . . . 29 22 23 . . . . . . . . . . . . . . . . . . . Kinetic 13195 | 145 471 1442 . 327 1692 236 31 . 679 406 63 266 216 955 2132 1639 186 497 . 808 1004 . . . Thermal 7969 | . . 21 385 1998 1226 161 131 . . . 463 868 . . 289 1543 . 265 . . . . . 619 Explosive 535 | . . . . 423 . . . . . . . . . . . 112 . . . . . . . . Electromagnetic 15360 | . . 78 1504 1379 1152 . 404 . 1212 . 1526 1614 89 . 96 4241 341 908 . 357 . 259 . 200 Impact . | . . . . . . . . . . . . . . . . . . . . . . . . . Slashing 266 | . . . 135 131 . . . . . . . . . . . . . . . . . . . . Piercing . | . . . . . . . . . . . . . . . . . . . . . . . . . Highest Corruption 7 | . . . . 3 4 4 4 4 . 5 3 3 3 3 7 1 1 1 1 1 3 3 3 3 Average Corruption 2 | . . . . 2 1 4 4 4 . 5 2 3 3 1 4 1 1 1 1 1 2 3 3 3 Corruption Purged 3 | . . . . . . . . . . . . . . 3 . . . . . . . . . . Effects 215 | . . . . 5 18 14 7 5 . 10 5 43 12 12 20 1 4 3 1 5 7 14 26 3 Message Errors 57 | . . . . 2 2 2 5 1 . 3 2 10 2 3 3 . 4 1 1 3 . 4 8 1 Matter Fused 51 | . . . . . 4 5 2 2 . . 2 7 5 1 4 . . . . . 1 7 11 . Heat Flow Errors 24 | . . . . 1 4 1 . 1 . 1 . 5 2 2 4 . . . . . 1 1 1 . Energy Discharges 28 | . . . . . 4 . . 1 . 2 . 5 2 3 . . . 2 . 2 1 . 4 2 Parts Rejected 1 | . . . . . . . . . . 1 . . . . . . . . . . . . . . Data Loss (minor) 26 | . . . . 1 . 4 . . . 2 . 10 1 1 . 1 . . . . 2 2 2 . Data Loss (major) 3 | . . . . . . . . . . . . . . . 3 . . . . . . . . . Misfires 1 | . . . . . . . . . . 1 . . . . . . . . . . . . . . Targeting Errors 21 | . . . . 1 3 2 . . . . 1 5 . 2 5 . . . . . 2 . . . Weapon Failures 3 | . . . . . 1 . . . . . . 1 . . 1 . . . . . . . . . Overload Shots 2 | . . . . . . . . . . . . . 1 . . . . . . . . . . 1 Overflow Damage 792 | . . . 131 113 59 8 7 . 39 . 65 15 . . 9 320 5 13 . . . . . 8 Projectiles 315 | . . . . 25 40 8 . . 8 . 4 2 . . . 228 . . . . . . . . Explosions 352 | . . . 6 88 19 . 7 . 31 . 61 13 . . 9 92 5 13 . . . . . 8 Melee 125 | . . . 125 . . . . . . . . . . . . . . . . . . . . . Knockbacks 29 | . . . . 4 11 2 . . 9 1 2 . . . . . . . . . . . . . Impact . | . . . . . . . . . . . . . . . . . . . . . . . . . Kinetic 28 | . . . . 4 10 2 . . 9 1 2 . . . . . . . . . . . . . Secondary 1 | . . . . . 1 . . . . . . . . . . . . . . . . . . . Self-Inflicted Damage 488 | . 8 . 71 66 . . 8 . 16 . 83 38 18 . . 66 . 30 . . . . . 84 Shots 21 | . 1 . 2 2 . . 2 . 1 . 2 1 1 . . 1 . 3 . . . . . 5 Rammed 5 | . . . 2 1 1 . . . . . . 1 . . . . . . . . . . . . Targets Rammed 7 | . . . 3 1 2 . . . . . . 1 . . . . . . . . . . . . Kicked . | . . . . . . . . . . . . . . . . . . . . . . . . . Crushed 2 | . . . 1 . 1 . . . . . . . . . . . . . . . . . . . Highest Temperature 698 | . 12 72 194 204 324 199 225 223 126 288 428 348 221 253 260 246 . 108 . 216 145 317 98 698 Average Temperature 88 | . 8 38 80 94 79 38 96 115 34 109 146 95 53 40 110 80 . 35 . 97 56 99 60 299 Received Heat Transfer 3197 | . 78 270 162 540 345 18 108 . 198 81 102 199 22 . 174 363 . 234 . 144 . . . 159 Effects 32 | . . . . . 2 . . . . 3 15 6 . . . . . . . . . . . 6 Shutdowns 5 | . . . . . . . . . . . 4 1 . . . . . . . . . . . . Energy Bleed 3 | . . . . . . . . . . . 1 1 . . . . . . . . . . . 1 Interference 15 | . . . . . 2 . . . . 3 7 3 . . . . . . . . . . . . Matter Decay 1 | . . . . . . . . . . . . 1 . . . . . . . . . . . . Damage (minor) 3 | . . . . . . . . . . . . . . . . . . . . . . . . 3 Damage (major) 5 | . . . . . . . . . . . 3 . . . . . . . . . . . . 2 Siege Activations 7 | . . . . . . . . . . . . . . . 2 5 . . . . . . . . Total Turns 123 | . . . . . . . . . . . . . . . 88 35 . . . . . . . . Longest Duration 82 | . . . . . . . . . . . . . . . 82 8 . . . . . . . . Robots Corrupted 41 | . . . 3 . . . 1 . 8 . 5 4 . . . 16 . 2 . 2 . . . . Combat Hostiles 34 | . . . 1 . . . 1 . 8 . 3 3 . . . 14 . 2 . 2 . . . . Parts Fried 125 | . . 1 8 8 4 . 4 . 8 . 14 8 . . . 56 2 8 . 2 . 2 . . Impact Corruptions . | . . . . . . . . . . . . . . . . . . . . . . . . . Robots Melted 5 | . . . . . . . . . . . . 2 . . . . . . . . . . . 3 Combat Hostiles 5 | . . . . . . . . . . . . 2 . . . . . . . . . . . 3 Parts Melted 38 | . . . . 8 3 . . . . . . 15 . . 1 1 . . . . . . . 10 Heat Transferred 14811 | . . 37 374 3375 2065 325 225 . . . 600 2170 . . 300 1500 . 350 . . . . . 3490 Parts Sabotaged . | . . . . . . . . . . . . . . . . . . . . . . . . . Parts Stolen . | . . . . . . . . . . . . . . . . . . . . . . . . . Parts Stripped . | . . . . . . . . . . . . . . . . . . . . . . . . . Power Chain Reactions 34 | . . . 9 7 1 . 1 . 1 . 8 3 . . 2 . . 2 . . . . . . Missiles Intercepted . | . . . . . . . . . . . . . . . . . . . . . . . . . Alert | -11 -10 -9 -9 -8 -7 -7 -7 -7 -7 -6 -6 -6 -6 -6 -6 -5 -5 -5 -5 -4 -4 -4 -4 -4 ------- Run | Scr Mat Mat Sto Mat Fac Low Low Zio Dee Pro Fac Ext Cet Arc Hub Fac Upp Upp Zhi Pro Fac Upp Upp War Peak Influence 1803 | 10 255 351 423 1135 898 . . . . . 194 609 902 612 1161 1803 . . . . 261 . . . Initial 494 | . 6 29 113 102 494 . . . . . . 15 305 325 52 494 . . . . . . . . Average 420 | 2 140 203 249 482 604 . . . . . 57 346 643 392 535 764 . . . . 129 . . . Maximum Alert Level 5 | . 1 1 2 4 3 . . . . . . 2 3 2 4 5 . . . . 1 . . . Low Security (%) 26 | 100 60 38 25 25 . . . . . . 100 15 . 8 37 . . . . . 87 . . . Level 1 27 | . 39 61 73 32 . . . . . . . 54 23 31 15 . . . . . 12 . . . Level 2 29 | . . . 1 10 71 . . . . . . 30 15 59 3 69 . . . . . . . . Level 3 12 | . . . . 29 27 . . . . . . . 61 . 35 6 . . . . . . . . Level 4 2 | . . . . 2 . . . . . . . . . . 6 13 . . . . . . . . Level 5 1 | . . . . . . . . . . . . . . . . 7 . . . . . . . . High Security . | . . . . . . . . . . . . . . . . 2 . . . . . . . . Max Security . | . . . . . . . . . . . . . . . . . . . . . . . . . Squads Dispatched 54 | . 2 2 3 10 9 . . . . . 5 1 1 . 6 13 . . . . 2 . . . Investigation 14 | . 1 2 2 3 1 . . . . . . 1 1 . 1 2 . . . . . . . . Extermination 9 | . . . . . 2 . . . . . 1 . . . 1 3 . . . . 2 . . . Reinforcement 15 | . 1 . 1 2 2 . . . . . 4 . . . 3 2 . . . . . . . . Assault 11 | . . . . 2 2 . . . . . . . . . 1 6 . . . . . . . . Garrison 5 | . . . . 3 2 . . . . . . . . . . . . . . . . . . . Intercept . | . . . . . . . . . . . . . . . . . . . . . . . . . Construction Impeded 1 | . . . . . . . . . . . 1 . . . . . . . . . . . . . Haulers Reinforced 5 | . . . . . 1 . . . . . 1 . . . 2 1 . . . . . . . . Stealth | -11 -10 -9 -9 -8 -7 -7 -7 -7 -7 -6 -6 -6 -6 -6 -6 -5 -5 -5 -5 -4 -4 -4 -4 -4 --------- Run | Scr Mat Mat Sto Mat Fac Low Low Zio Dee Pro Fac Ext Cet Arc Hub Fac Upp Upp Zhi Pro Fac Upp Upp War Distress Signals 14 | . . 1 . 5 . . . . . . 1 1 3 . 1 2 . . . . . . . . Communications Jammed 11 | . . . . . . . . . . . . . . . 11 . . . . . . . . . Distress Signals 11 | . . . . . . . . . . . . . . . 11 . . . . . . . . . Times Spotted 450 | . 11 22 27 69 44 3 4 . 27 4 19 45 16 11 23 67 8 15 . 9 13 1 . 12 Peak Tracking Total 10 | . 3 4 3 6 6 1 4 . 6 3 4 4 5 1 5 8 5 5 . 3 4 2 . 10 Tactical Retreats 27 | . . . . 8 2 . 1 . 1 . . 6 . . . 4 1 1 . . 3 . . . Traps | -11 -10 -9 -9 -8 -7 -7 -7 -7 -7 -6 -6 -6 -6 -6 -6 -5 -5 -5 -5 -4 -4 -4 -4 -4 ------- Run | Scr Mat Mat Sto Mat Fac Low Low Zio Dee Pro Fac Ext Cet Arc Hub Fac Upp Upp Zhi Pro Fac Upp Upp War Traps Triggered 26 | . . 2 1 4 4 . . . . . 2 6 . . 2 2 . . . . . 1 . 2 Indirectly 2 | . . . . . 2 . . . . . . . . . . . . . . . . . . . Trap Hack Attempts . | . . . . . . . . . . . . . . . . . . . . . . . . . Triggered . | . . . . . . . . . . . . . . . . . . . . . . . . . Disarmed . | . . . . . . . . . . . . . . . . . . . . . . . . . Reprogrammed . | . . . . . . . . . . . . . . . . . . . . . . . . . Reused . | . . . . . . . . . . . . . . . . . . . . . . . . . Traps Extracted . | . . . . . . . . . . . . . . . . . . . . . . . . . Installed . | . . . . . . . . . . . . . . . . . . . . . . . . . Triggered 2 | . . . . . . . . . . . . . . . . . . 2 . . . . . . Machines | -11 -10 -9 -9 -8 -7 -7 -7 -7 -7 -6 -6 -6 -6 -6 -6 -5 -5 -5 -5 -4 -4 -4 -4 -4 ---------- Run | Scr Mat Mat Sto Mat Fac Low Low Zio Dee Pro Fac Ext Cet Arc Hub Fac Upp Upp Zhi Pro Fac Upp Upp War Machines Disabled 69 | . 2 . 8 8 1 . . . 5 . 3 8 4 3 7 19 . . . . 1 . . . Max in Single Turn 5 | . 2 . 1 4 1 . . . 1 . 1 3 1 1 2 5 . . . . . . . . Garrison Access 4 | . . . . 1 2 . . . . . 1 . . . . . . . . . . . . . Network Hub 1 | . . . . . . . . . . . . . . . 1 . . . . . . . . . Machines Sabotaged 1 | . . . . . . . . . . . . . . . 1 . . . . . . . . . Garrisons Compromised 1 | . . . . . . . . . . . . . . . . 1 . . . . . . . . Overloaded Fab Kills . | . . . . . . . . . . . . . . . . . . . . . . . . . Fab Network Shutdowns . | . . . . . . . . . . . . . . . . . . . . . . . . . Hacking | -11 -10 -9 -9 -8 -7 -7 -7 -7 -7 -6 -6 -6 -6 -6 -6 -5 -5 -5 -5 -4 -4 -4 -4 -4 --------- Run | Scr Mat Mat Sto Mat Fac Low Low Zio Dee Pro Fac Ext Cet Arc Hub Fac Upp Upp Zhi Pro Fac Upp Upp War Machines Accessed 72 | . 2 2 13 9 7 . . 1 . . 5 13 1 . 4 4 1 . 4 . 4 . 1 1 Terminals 50 | . 1 . 10 8 4 . . . . . 4 13 1 . 4 3 . . . . 2 . . . Fabricators 3 | . . . . . 1 . . . . . . . . . . 1 . . . . 1 . . . Repair Stations 2 | . . . 1 . . . . . . . . . . . . . . . . . 1 . . . Recycling Units 7 | . 1 2 2 1 1 . . . . . . . . . . . . . . . . . . . Scanalyzers . | . . . . . . . . . . . . . . . . . . . . . . . . . Garrison Access 2 | . . . . . 1 . . . . . 1 . . . . . . . . . . . . . Total Hacks 231 | . 5 6 40 33 17 . . 3 . . 21 28 4 . 11 19 1 . 17 . 24 . 1 1 Successful 131 | . 3 3 24 19 6 . . 3 . . 12 13 . . 8 7 1 . 17 . 13 . 1 1 Failed 99 | . 2 3 16 14 11 . . . . . 8 15 4 . 3 12 . . . . 11 . . . Catastrophic 12 | . . . 3 . . . . . . . 1 2 1 . . 3 . . . . 2 . . . Database Lockouts 1 | . . . . . . . . . . . 1 . . . . . . . . . . . . . Manual 92 | . 3 3 10 20 3 . . . . . 12 13 1 . 7 10 . . . . 10 . . . Terminals 157 | . 3 . 23 31 10 . . . . . 20 28 4 . 11 15 . . . . 12 . . . Fabricators 16 | . . . . . 2 . . . . . . . . . . 4 . . . . 10 . . . Repair Stations 13 | . . . 11 . . . . . . . . . . . . . . . . . 2 . . . Recycling Units 19 | . 2 6 6 2 3 . . . . . . . . . . . . . . . . . . . Scanalyzers . | . . . . . . . . . . . . . . . . . . . . . . . . . Garrison Access 3 | . . . . . 2 . . . . . 1 . . . . . . . . . . . . . Terminal Hacks 72 | . 1 . 8 11 3 . . 3 . . 8 9 . . 3 3 1 . 17 . 3 . 1 1 Record 5 | . . . . . . . . . . . . . . . . . . . 5 . . . . . Part Schematic 10 | . . . . . . . . 3 . . 1 1 . . . 1 . . 4 . . . . . Robot Schematic 1 | . . . . . . . . . . . 1 . . . . . . . . . . . . . Robot Analysis 6 | . . . . 2 . . . . . . . . . . . . . . 4 . . . . . Prototype ID Bank 8 | . . . . 2 1 . . . . . . 1 . . . . . . 4 . . . . . Open Door 13 | . . . 3 . . . . . . . 1 6 . . . . 1 . . . . . 1 1 Branch Access Points 3 | . . . . . 1 . . . . . 1 . . . . 1 . . . . . . . . Terminal Index 2 | . . . . . . . . . . . 1 . . . . . . . . . 1 . . . Fabricator Index 1 | . . . . . . . . . . . . . . . . 1 . . . . . . . . Alert Level 1 | . . . . 1 . . . . . . . . . . . . . . . . . . . . Unreport Threat 2 | . . . 2 . . . . . . . . . . . . . . . . . . . . . Locate Traps 5 | . . . 2 . . . . . . . 2 . . . 1 . . . . . . . . . Surveillance Status 1 | . . . . . . . . . . . . 1 . . . . . . . . . . . . Hauler Manifests 2 | . 1 . . 1 . . . . . . . . . . . . . . . . . . . . Registered Components 3 | . . . . . 1 . . . . . 1 . . . . . . . . . 1 . . . Zone Layout 9 | . . . 1 5 . . . . . . . . . . 2 . . . . . 1 . . . Fabricator Hacks 8 | . . . . . 1 . . . . . . . . . . 2 . . . . 5 . . . Load Schematic 3 | . . . . . . . . . . . . . . . . 1 . . . . 2 . . . Build 5 | . . . . . 1 . . . . . . . . . . 1 . . . . 3 . . . Repair Station Hacks 9 | . . . 8 . . . . . . . . . . . . . . . . . 1 . . . Scan Component 5 | . . . 4 . . . . . . . . . . . . . . . . . 1 . . . Repair 4 | . . . 4 . . . . . . . . . . . . . . . . . . . . . Recycling Unit Hacks 5 | . 1 1 2 1 . . . . . . . . . . . . . . . . . . . . Retrieve Components 5 | . 1 1 2 1 . . . . . . . . . . . . . . . . . . . . Scanalyzer . | . . . . . . . . . . . . . . . . . . . . . . . . . Garrison Access Hacks 2 | . . . . . 1 . . . . . 1 . . . . . . . . . . . . . Seal Access 2 | . . . . . 1 . . . . . 1 . . . . . . . . . . . . . Unauthorized Hacks 35 | . 1 2 6 7 1 . . . . . 3 4 . . 5 2 . . . . 4 . . . Terminals 26 | . . . 4 6 . . . . . . 3 4 . . 5 2 . . . . 2 . . . Track 11 | . . . 3 3 . . . . . . 1 . . . 3 1 . . . . . . . . Botnet 14 | . . . 1 3 . . . . . . 2 4 . . 1 1 . . . . 2 . . . Sabotage 1 | . . . . . . . . . . . . . . . 1 . . . . . . . . . Fabricators 3 | . . . . . 1 . . . . . . . . . . . . . . . 2 . . . Prioritize 1 | . . . . . . . . . . . . . . . . . . . . . 1 . . . Siphon 1 | . . . . . . . . . . . . . . . . . . . . . 1 . . . Haulers 1 | . . . . . 1 . . . . . . . . . . . . . . . . . . . Repair Stations . | . . . . . . . . . . . . . . . . . . . . . . . . . Recycling Units 6 | . 1 2 2 1 . . . . . . . . . . . . . . . . . . . . Tunnel 6 | . 1 2 2 1 . . . . . . . . . . . . . . . . . . . . Scanalyzers . | . . . . . . . . . . . . . . . . . . . . . . . . . Garrison Access . | . . . . . . . . . . . . . . . . . . . . . . . . . Data Cores Recovered . | . . . . . . . . . . . . . . . . . . . . . . . . . Used . | . . . . . . . . . . . . . . . . . . . . . . . . . Hacking Detections 50 | . 1 1 9 8 7 . . . . . 3 9 1 . 4 4 . . . . 3 . . . Full Trace Events 6 | . . . . 1 1 . . . . . . 1 1 . . 2 . . . . . . . . Feedback Events 1 | . . . . . 1 . . . . . . . . . . . . . . . . . . . Corruption 1 | . . . . . 1 . . . . . . . . . . . . . . . . . . . Feedback Blocked . | . . . . . . . . . . . . . . . . . . . . . . . . . Robot Schematics Acquired 1 | . . . . . . . . . . . 1 . . . . . . . . . . . . . Robots Built 2 | . . . . . . . . . . . . . . . . . . . . . 2 . . . Matter 378 | . . . . . . . . . . . . . . . . . . . . . 378 . . . Time 134 | . . . . . . . . . . . . . . . . . . . . . 134 . . . Total Robot Build Rating 8 | . . . . . . . . . . . . . . . . . . . . . 8 . . . Part Schematics Acquired 10 | . . . . . . . . 3 . . 1 1 . . . 1 . . 4 . . . . . Parts Built 3 | . . . . . 1 . . . . . . . . . . 1 . . . . 1 . . . Matter 484 | . . . . . 190 . . . . . . . . . . 168 . . . . 126 . . . Time 173 | . . . . . 47 . . . . . . . . . . 42 . . . . 84 . . . Total Part Build Rating 13 | . . . . . 5 . . . . . . . . . . 4 . . . . 4 . . . Parts Repaired 4 | . . . 4 . . . . . . . . . . . . . . . . . . . . . Time 154 | . . . 154 . . . . . . . . . . . . . . . . . . . . . Parts Recycled . | . . . . . . . . . . . . . . . . . . . . . . . . . Recycled Matter . | . . . . . . . . . . . . . . . . . . . . . . . . . Retrieved Matter . | . . . . . . . . . . . . . . . . . . . . . . . . . Retrieved Components 29 | . 4 4 12 9 . . . . . . . . . . . . . . . . . . . . Parts Scanalyzed . | . . . . . . . . . . . . . . . . . . . . . . . . . Part Schematics Acquired . | . . . . . . . . . . . . . . . . . . . . . . . . . Parts Damaged . | . . . . . . . . . . . . . . . . . . . . . . . . . Bothacking | -11 -10 -9 -9 -8 -7 -7 -7 -7 -7 -6 -6 -6 -6 -6 -6 -5 -5 -5 -5 -4 -4 -4 -4 -4 ------------ Run | Scr Mat Mat Sto Mat Fac Low Low Zio Dee Pro Fac Ext Cet Arc Hub Fac Upp Upp Zhi Pro Fac Upp Upp War Used RIF Installer . | . . . . . . . . . . . . . . . . . . . . . . . . . Robots Hacked . | . . . . . . . . . . . . . . . . . . . . . . . . . Non-combat . | . . . . . . . . . . . . . . . . . . . . . . . . . Combat . | . . . . . . . . . . . . . . . . . . . . . . . . . Robot Hacks Applied . | . . . . . . . . . . . . . . . . . . . . . . . . . Relay Couplers Released 4 | . . . . 1 3 . . . . . . . . . . . . . . . . . . . Machine Destruction 4 | . . . . 1 3 . . . . . . . . . . . . . . . . . . . Robots Rewired 12 | . . . . . . . . . . . . 11 . . . . . . . . . . . 1 Allies Hacked . | . . . . . . . . . . . . . . . . . . . . . . . . . Hacks Repelled . | . . . . . . . . . . . . . . . . . . . . . . . . . Allies | -11 -10 -9 -9 -8 -7 -7 -7 -7 -7 -6 -6 -6 -6 -6 -6 -5 -5 -5 -5 -4 -4 -4 -4 -4 -------- Run | Scr Mat Mat Sto Mat Fac Low Low Zio Dee Pro Fac Ext Cet Arc Hub Fac Upp Upp Zhi Pro Fac Upp Upp War Total Allies 48 | . . . 10 . . . . 10 . . . 20 5 . . . . . . . 2 . . 1 Largest Group 17 | . . . 10 4 . . . 10 10 . . 17 17 7 5 . . . . . 2 . . 1 Highest-Rated Group 805 | . . . 88 32 . . . 280 280 . . 625 805 569 391 . . . . . 76 . . 60 Highest-Rated Ally 156 | . . . 16 8 . . . 37 37 . . 156 156 156 94 . . . . . 38 . . 60 Total Orders 18 | . . . . . . . . . . . . . 3 2 5 7 . . . . 1 . . . STAY 8 | . . . . . . . . . . . . . 3 1 3 . . . . . 1 . . . ROAM 1 | . . . . . . . . . . . . . . . . 1 . . . . . . . . FOLLOW 3 | . . . . . . . . . . . . . . 1 2 . . . . . . . . . EXPLORE 5 | . . . . . . . . . . . . . . . . 5 . . . . . . . . RETURN 1 | . . . . . . . . . . . . . . . . 1 . . . . . . . . Ally Attacks 405 | . . . 35 6 . . . . 110 . . 50 128 14 58 . . . . . 4 . . . Total Damage 9547 | . . . 635 45 . . . . 1347 . . 1197 3547 593 2146 . . . . . 37 . . . Kills 73 | . . . 9 2 . . . . 16 . . 6 20 2 17 . . . . . 1 . . . Allies Corrupted 1 | . . . . . . . . . . . . . . . 1 . . . . . . . . . Allies Melted 1 | . . . . . . . . . 1 . . . . . . . . . . . . . . . Intel | -11 -10 -9 -9 -8 -7 -7 -7 -7 -7 -6 -6 -6 -6 -6 -6 -5 -5 -5 -5 -4 -4 -4 -4 -4 ------- Run | Scr Mat Mat Sto Mat Fac Low Low Zio Dee Pro Fac Ext Cet Arc Hub Fac Upp Upp Zhi Pro Fac Upp Upp War Robot Analysis Total 6 | . . . . 2 . . . . . . . . . . . . . . 4 . . . . . Derelict Logs Recovered 7 | . . . . . . . 1 . . . . . . . . . 1 1 . 1 . 2 1 . Drone Launches 5 | . . . . . . . . . . . . . . . . 5 . . . . . . . . Drone Recoveries 3 | . . . . . . . . . . . . . . . . 3 . . . . . . . . Exploration | -11 -10 -9 -9 -8 -7 -7 -7 -7 -7 -6 -6 -6 -6 -6 -6 -5 -5 -5 -5 -4 -4 -4 -4 -4 ------------- Run | Scr Mat Mat Sto Mat Fac Low Low Zio Dee Pro Fac Ext Cet Arc Hub Fac Upp Upp Zhi Pro Fac Upp Upp War Turns Passed 33469 | 149 498 988 2027 2522 2557 571 504 2825 3725 877 1536 2128 577 1313 934 2532 673 1281 323 1387 752 975 1433 382 Spaces Moved 15411 | 61 233 415 866 1031 1165 297 269 1533 1806 505 740 892 275 166 369 1064 301 569 154 706 447 580 747 220 Core 50 | 1 . . . . . . . . . . . . . 49 . . . . . . . . . . Treads 12029 | 60 233 415 866 1031 1165 297 269 1533 1667 . 389 799 275 117 369 1064 301 569 154 451 . . . 5 Legs 1483 | . . . . . . . . . 139 505 351 93 . . . . . . . 255 140 . . . Wheels 1849 | . . . . . . . . . . . . . . . . . . . . . 307 580 747 215 Hover . | . . . . . . . . . . . . . . . . . . . . . . . . . Flight . | . . . . . . . . . . . . . . . . . . . . . . . . . Fastest Speed 50 | 50 160 160 180 200 180 180 180 180 180 156 156 180 180 180 172 180 200 200 180 150 130 120 130 120 Average Speed 182 | 158 160 176 180 200 180 180 180 180 192 156 170 180 180 746 176 181 200 200 199 178 137 129 130 134 Slowest Speed 2100 | 160 160 180 200 200 200 180 200 200 240 156 205 300 180 2100 180 200 200 200 200 260 200 130 130 180 Overloaded Moves . | . . . . . . . . . . . . . . . . . . . . . . . . . Propulsion Burnouts . | . . . . . . . . . . . . . . . . . . . . . . . . . Robots Hopped . | . . . . . . . . . . . . . . . . . . . . . . . . . Cave-ins Triggered . | . . . . . . . . . . . . . . . . . . . . . . . . . Exploration Rate (%) 56 | 5 41 38 94 85 28 64 50 87 84 67 22 85 67 78 34 28 53 66 61 81 8 71 71 41 Regions Visited 24 Branch Regions 17 Pre-discovered Areas 12 | . 1 2 2 1 . . . 1 . . . . . . . . . . 3 1 . 1 . . Known Exits Taken 16 | . . 1 . . 1 . . 1 . . 1 1 1 1 1 1 1 1 1 1 1 1 1 . Unknown Exits Taken 8 | 1 1 . 1 1 . 1 1 . 1 1 . . . . . . . . . . . . . . Scrap Searched 24 | . . . . . . 3 1 2 . 4 . . . . . . 1 4 . 3 . 2 4 . Spaces Dug 62 | . . . 1 4 2 . . 2 4 . . . . . 2 4 1 3 . 10 1 . 11 17 Terrain Destroyed 412 | . . . 31 61 9 1 7 2 15 9 31 20 1 23 30 51 9 27 . 30 13 . 23 19 Melee 6 | . . . 1 3 . . . 2 . . . . . . . . . . . . . . . . Projectile 245 | . . . . 6 9 1 . . 15 9 3 9 1 23 26 34 9 15 . 30 13 . 23 19 AOE 161 | . . . 30 52 . . 7 . . . 28 11 . . 4 17 . 12 . . . . . . Terrain Rammed . | . . . . . . . . . . . . . . . . . . . . . . . . . Walls Destroyed . | . . . . . . . . . . . . . . . . . . . . . . . . . Machines Disabled . | . . . . . . . . . . . . . . . . . . . . . . . . . Actions | -11 -10 -9 -9 -8 -7 -7 -7 -7 -7 -6 -6 -6 -6 -6 -6 -5 -5 -5 -5 -4 -4 -4 -4 -4 --------- Run | Scr Mat Mat Sto Mat Fac Low Low Zio Dee Pro Fac Ext Cet Arc Hub Fac Upp Upp Zhi Pro Fac Upp Upp War Total 19056 | 86 298 545 1202 1283 1444 314 278 1581 1969 563 922 1252 336 195 565 1481 340 658 169 773 545 796 1186 275 Wait 1590 | . 7 9 220 52 79 . . 16 34 31 77 74 2 3 106 173 14 34 . 16 30 201 409 3 Move 15387 | 60 232 414 865 1030 1164 296 268 1532 1805 504 739 891 274 165 368 1063 300 568 153 705 446 579 746 220 Hop . | . . . . . . . . . . . . . . . . . . . . . . . . . Pick Up 192 | 4 9 20 9 30 28 3 . 4 13 4 12 5 5 1 7 18 1 2 1 3 8 1 2 2 Fast Attach 132 | 7 . 14 8 1 5 . . 9 10 . 6 12 5 2 10 14 . 3 7 8 7 2 2 . Attach 85 | . . 2 2 15 9 . . 2 3 4 5 4 3 . 3 16 . 1 . 4 3 1 . 8 Detach 17 | . . . . 1 1 . . . . . . 1 . . 2 6 . . . 2 1 . . 3 Swap 214 | . 2 4 22 21 25 3 4 . 13 4 15 13 14 1 10 21 7 7 1 5 13 4 1 4 Drop 307 | . 7 24 13 29 41 3 . 13 25 1 19 15 20 3 19 31 1 7 7 3 17 4 3 2 Fire 945 | 15 41 58 54 99 90 9 6 . 66 15 44 81 13 20 40 135 17 36 . 27 20 4 23 32 Melee 15 | . . . 6 4 . . . 5 . . . . . . . . . . . . . . . . Ram . | . . . . . . . . . . . . . . . . . . . . . . . . . Kick . | . . . . . . . . . . . . . . . . . . . . . . . . . Crush 7 | . . . 3 1 2 . . . . . . 1 . . . . . . . . . . . . Escape Stasis 19 | . . . . . . . . . . . 5 10 . . . 4 . . . . . . . . Rewire 146 | . . . . . . . . . . . . 145 . . . . . . . . . . . 1 Trap . | . . . . . . . . . . . . . . . . . . . . . . . . . Miscellaneous . | . . . . . . . . . . . . . . . . . . . . . . . . . Route ------- -11/Scrapyard -10/Materials -9/Materials (discovered 2 exits: [*Min] / *Sto) -9/Storage -8/Materials (discovered 3 exits: *Fac x3) -7/Factory (discovered 3 exits: *Fac / *Low x2) -7/Lower Caves -7/Lower Caves -7/Zion (discovered 2 exits: *Dee / [*Pro]) -7/Deep Caves -6/Proximity Caves -6/Factory (discovered 4 exits: Low x2 / *Ext x2) -6/Extension (discovered 2 exits: *Fac / *Cet) -6/Cetus (discovered 2 exits: *Fac / *Arc) -6/Archives (discovered 3 exits: *Fac / *Hub x2) -6/Hub_04(d) -5/Factory (discovered 3 exits: *Fac / *Upp x2) -5/Upper Caves -5/Upper Caves (discovered 2 exits: *Fac / *Zhi) -5/Zhirov -4/Proximity Caves -4/Factory -4/Upper Caves (discovered 2 exits: *Upp / *War) -4/Upper Caves (discovered 2 exits: [Res] / *War) -4/Warlord (discovered 1 exit: [*Pro]) History --------- Turn | Location | Event 25 | -11/Scrapyard | Discovered new exit (range 15) 150 | -11/Scrapyard | Entered Materials 299 | -10/Materials | Discovered new exit (range 16) 303 | -10/Materials | Build established: Mutant 648 | -10/Materials | Entered another Materials area 648 | -9/Materials | Evolved 2 slots: Utility x1, Weapon x1 855 | -9/Materials | Discovered new exit (range 9) 1007 | -9/Materials | Identified exit to Storage 1073 | -9/Materials | Discovered new exit (range 15) 1149 | -9/Materials | Build established: Gunner 1636 | -9/Materials | Entered Storage 2367 | -9/Storage | Repaired Imp. EM Shotgun 2395 | -9/Storage | Repaired Lgt. Treads 2422 | -9/Storage | Repaired Lgt. Treads 2475 | -9/Storage | Repaired Imp. EM Shotgun 2942 | -9/Storage | Discovered new exit (range 15) 3039 | -9/Storage | Assisted by bots powering up and referring to "LRC-V3" 3343 | -9/Storage | Build established: Commander-Gunner 3663 | -9/Storage | Entered Materials 3663 | -8/Materials | Accompanied by 4 allies 3663 | -8/Materials | Evolved 2 slots: Utility x2 3949 | -8/Materials | Build established: Hauler-Tank 4383 | -8/Materials | Discovered new exit (range 13) 4821 | -8/Materials | Discovered new exit (range 16) 5177 | -8/Materials | Garrison activated, responded to threat 5263 | -8/Materials | First assault squad dispatched 5731 | -8/Materials | Discovered new exit (range 7) 5883 | -8/Materials | Build established: Hauler-Mutant 6185 | -8/Materials | Entered Factory 6185 | -7/Factory | Evolved 2 slots: Propulsion x1, Utility x1 6250 | -7/Factory | Identified exit to Lower Caves 6485 | -7/Factory | Build established: Hauler-Gunner 6519 | -7/Factory | Fabricated Imp. Transmission Jammer (x1) 6662 | -7/Factory | Discovered new exit (range 16) 8185 | -7/Factory | First assault squad dispatched 8742 | -7/Factory | Entered Lower Caves 9280 | -7/Lower Caves | Discovered new exit (range 8) 9290 | -7/Lower Caves | Encountered a Warlord checkpoint 9313 | -7/Lower Caves | Entered another Lower Caves area 9360 | -7/Lower Caves | Spotted B-75 Beast 9682 | -7/Lower Caves | Learned Factory stockpile data 9747 | -7/Lower Caves | Discovered new exit (range 15) 9817 | -7/Lower Caves | Entered Zion 9936 | -7/Zion | Gained Derelict followers 10005 | -7/Zion | Discovered new exit (range 16) 10104 | -7/Zion | System corruption cleaned by Quarantine Array 10326 | -7/Zion | Gained Derelict followers 10459 | -7/Zion | Identified exit to Deep Caves 10887 | -7/Zion | Learned location of Warlord (-4) 10903 | -7/Zion | Found Prototype Device 10958 | -7/Zion | Gained Derelict followers 12299 | -7/Zion | Found Prototype Processor 12299 | -7/Zion | Identified Spectral Analyzer 12306 | -7/Zion | Found Prototype Processor 12306 | -7/Zion | Identified Exp. Core Analyzer 12312 | -7/Zion | Found Prototype Processor 12312 | -7/Zion | Identified Exp. Melee Analysis Suite 12318 | -7/Zion | Found Prototype Hackware 12604 | -7/Zion | Saw the warning signs outside the Deep Caves entrance 12642 | -7/Zion | Entered Deep Caves 12642 | -7/Deep Caves | Accompanied by 10 allies 13074 | -7/Deep Caves | Z-Facility disabled 13126 | -7/Deep Caves | Attacked by Z-Imprinter 13141 | -7/Deep Caves | Allies destroyed Z-Imprinter 13184 | -7/Deep Caves | Found Prototype Device 13184 | -7/Deep Caves | Identified Zio. Metafield Generator 13208 | -7/Deep Caves | Found Prototype Protection 13208 | -7/Deep Caves | Identified Zio. Weapon Casing 13475 | -7/Deep Caves | Build established: Hauler-Mutant 13881 | -7/Deep Caves | Discovered new exit (range 7) 13971 | -7/Deep Caves | Spotted as-22121 13984 | -7/Deep Caves | Core integrity fell below 50% 13986 | -7/Deep Caves | Destroyed as-22121 14172 | -7/Deep Caves | Found Zio. Weapon Casing 14187 | -7/Deep Caves | Found Zio. Weapon Casing 14198 | -7/Deep Caves | Found Zio. Weapon Casing 14676 | -7/Deep Caves | Found Zio. Weapon Casing 15108 | -7/Deep Caves | Identified Mobile Refinery Mk. CCLXVII 15305 | -7/Deep Caves | Exposed GOLEM chamber 15331 | -7/Deep Caves | Spotted as-34842 15344 | -7/Deep Caves | Destroyed as-34842 15365 | -7/Deep Caves | Found Prototype Energy Cannon 15536 | -7/Deep Caves | Found GOLEM Unit 15739 | -7/Deep Caves | Spotted as-76878 15841 | -7/Deep Caves | Spotted as-89969 15855 | -7/Deep Caves | Destroyed as-76878 15855 | -7/Deep Caves | Destroyed as-89969 15963 | -7/Deep Caves | Found Zio. Weapon Casing 16367 | -7/Deep Caves | Entered Proximity Caves 16678 | -6/Proximity Caves | Build established: Hauler-Gunner 17026 | -6/Proximity Caves | Discovered new exit (range 12) 17036 | -6/Proximity Caves | Build established: Hauler-Tank 17244 | -6/Proximity Caves | Entered Factory 17244 | -6/Factory | Evolved 2 slots: Power x1, Utility x1 17519 | -6/Factory | Identified Exp. System Shield 17521 | -6/Factory | Identified exit to Lower Caves 17521 | -6/Factory | Identified exit to Extension 17540 | -6/Factory | Build established: Hauler-Skirmisher 18178 | -6/Factory | Central database locked down 18780 | -6/Factory | Entered Extension 18794 | -6/Extension | Disrupted transfer network 19125 | -6/Extension | Rescued a captive Derelict 19126 | -6/Extension | Rescued a captive Derelict 19240 | -6/Extension | Rescued a captive Derelict 19518 | -6/Extension | Build established: Scavenger-Tank 19916 | -6/Extension | Lost 3 parts (1n2w) 19970 | -6/Extension | Identified Firepult 20048 | -6/Extension | Spotted B-75 Beast 20050 | -6/Extension | Destroyed B-75 Beast 20062 | -6/Extension | Spotted B-75 Beast 20078 | -6/Extension | Destroyed B-75 Beast 20284 | -6/Extension | Rescued a captive Derelict 20285 | -6/Extension | Rescued A7 20326 | -6/Extension | Rescued a captive Derelict 20328 | -6/Extension | Rescued a captive Derelict 20707 | -6/Extension | Rescued a captive Derelict 20708 | -6/Extension | Rescued a captive Derelict 20790 | -6/Extension | Build established: Commander-Tank 20869 | -6/Extension | Discovered new exit (range 10) 20871 | -6/Extension | Discovered new exit (range 6) 20882 | -6/Extension | Identified exit to Cetus 20888 | -6/Extension | Found Prototype Processor 20888 | -6/Extension | Identified Exp. Signal Interpreter 20908 | -6/Extension | Entered Cetus 20908 | -6/Cetus | Accompanied by 17 allies (A7) 20913 | -6/Cetus | Acquired a Cetus Manufacturing Module code from A7 20932 | -6/Cetus | Spotted Cetus Guard 20933 | -6/Cetus | Spotted Cetus Guard 20933 | -6/Cetus | Spotted Cetus Guard 20935 | -6/Cetus | Spotted Cetus Guard 20949 | -6/Cetus | Allies destroyed Cetus Guard 20951 | -6/Cetus | Allies destroyed Cetus Guard 20954 | -6/Cetus | Allies destroyed Cetus Guard 20958 | -6/Cetus | Allies destroyed Cetus Guard 21053 | -6/Cetus | Started Cetus Manufacturing Module 21078 | -6/Cetus | Manufactured an Enhanced Grunt 21103 | -6/Cetus | Manufactured an Enhanced Grunt 21128 | -6/Cetus | Manufactured an Enhanced Grunt 21153 | -6/Cetus | Manufactured an Enhanced Grunt 21178 | -6/Cetus | Manufactured an Enhanced Grunt 21198 | -6/Cetus | Escorted A7 to Cetus Mainframe 21229 | -6/Cetus | Discovered new exit (range 15) 21240 | -6/Cetus | Build established: Scavenger-Tank 21273 | -6/Cetus | Spotted Cetus Guard 21273 | -6/Cetus | Spotted Cetus Guard 21276 | -6/Cetus | Allies destroyed Cetus Guard 21276 | -6/Cetus | Spotted Cetus Guard 21276 | -6/Cetus | Spotted Cetus Guard 21286 | -6/Cetus | Allies destroyed Cetus Guard 21287 | -6/Cetus | Discovered new exit (range 15) 21293 | -6/Cetus | Allies destroyed Cetus Guard 21297 | -6/Cetus | Allies destroyed Cetus Guard 21299 | -6/Cetus | Met Revision 17 21306 | -6/Cetus | Destroyed Revision 17 21477 | -6/Cetus | Identified exit to Archives 21485 | -6/Cetus | Entered Archives 21485 | -6/Archives | Accompanied by 7 allies (A7) 21490 | -6/Archives | Received a hacking code to weaken MAIN.C 21616 | -6/Archives | Discovered new exit (range 16) 21962 | -6/Archives | Build established: Scavenger-Gunner 22054 | -6/Archives | Discovered new exit (range 16) 22736 | -6/Archives | Discovered new exit (range 15) 22788 | -6/Archives | Identified exit to Hub_04(d) 22798 | -6/Archives | Entered Hub_04(d) 22798 | -6/Hub_04(d) | Accompanied by 5 allies 23128 | -6/Hub_04(d) | Spotted B-75 Beast 23152 | -6/Hub_04(d) | Allies destroyed B-75 Beast 23191 | -6/Hub_04(d) | Build established: Scavenger-Skirmisher 23202 | -6/Hub_04(d) | Discovered new exit (range 16) 23373 | -6/Hub_04(d) | Found Prototype Processor 23373 | -6/Hub_04(d) | Identified Exp. Terrain Scan Processor 23388 | -6/Hub_04(d) | Found Exp. Terrain Scan Processor 23414 | -6/Hub_04(d) | Network Hub disabled 23447 | -6/Hub_04(d) | Spotted Lightning 23459 | -6/Hub_04(d) | Spotted Lightning 23463 | -6/Hub_04(d) | Destroyed Lightning 23466 | -6/Hub_04(d) | Spotted Lightning 23476 | -6/Hub_04(d) | Destroyed Lightning 23498 | -6/Hub_04(d) | First assault squad dispatched 23508 | -6/Hub_04(d) | Destroyed Lightning 23558 | -6/Hub_04(d) | Found Prototype Energy Cannon 23558 | -6/Hub_04(d) | Identified EMDS 23564 | -6/Hub_04(d) | Found Prototype Processor 23564 | -6/Hub_04(d) | Identified Exp. Targeting Computer 23580 | -6/Hub_04(d) | Found EMDS 23589 | -6/Hub_04(d) | Found Prototype Device 23589 | -6/Hub_04(d) | Identified Exp. Phase Shifter 23603 | -6/Hub_04(d) | Found Prototype Device 23603 | -6/Hub_04(d) | Identified EM Dispersion Field 23643 | -6/Hub_04(d) | Build established: Scavenger-Tank 23657 | -6/Hub_04(d) | Identified exit to Factory 23732 | -6/Hub_04(d) | Entered Factory 23732 | -5/Factory | Evolved 2 slots: Utility x2 24157 | -5/Factory | Build established: Scavenger-Mutant 24582 | -5/Factory | Discovered new exit (range 37) 24752 | -5/Factory | Identified exit to Factory 25411 | -5/Factory | Identified exit to Upper Caves 25532 | -5/Factory | First assault squad dispatched 25700 | -5/Factory | Fabricated Lrn. Sensor Array? 26039 | -5/Factory | Destroyed 8 combat bots 26202 | -5/Factory | High security lockdown imminent 26264 | -5/Factory | Entered Upper Caves 26474 | -5/Upper Caves | Build established: Scavenger-Tank 26590 | -5/Upper Caves | Identified exit to Upper Caves 26937 | -5/Upper Caves | Entered another Upper Caves area 27017 | -5/Upper Caves | Discovered exit to Factory (range 14) 27090 | -5/Upper Caves | Attracted the attention of an 0b10 checkpoint 27112 | -5/Upper Caves | Build established: Scavenger-Mutant 27445 | -5/Upper Caves | Build established: Scavenger-Tank 27950 | -5/Upper Caves | Build established: Scavenger-Mutant 28180 | -5/Upper Caves | Discovered new exit (range 7) 28216 | -5/Upper Caves | Identified exit to Zhirov 28218 | -5/Upper Caves | Entered Zhirov 28218 | -5/Zhirov | Discovered new exit (range 3) 28254 | -5/Zhirov | Met Zhirov 28298 | -5/Zhirov | Learned location of Command (-1) 28298 | -5/Zhirov | Learned location of Quarantine (-3) 28324 | -5/Zhirov | Zhirov requested help retrieving the SGEMP Prototype 28355 | -5/Zhirov | Found Alien Artifact 28355 | -5/Zhirov | Identified Integrated Reactor 28355 | -5/Zhirov | Installed Integrated Reactor, increased core energy generation (+10) 28539 | -5/Zhirov | Identified exit to Proximity Caves 28541 | -5/Zhirov | Entered Proximity Caves 28958 | -4/Proximity Caves | Attracted the attention of an 0b10 checkpoint 29464 | -4/Proximity Caves | Lost 5 parts (2n3u) 29792 | -4/Proximity Caves | Build established: Scavenger-Gunner 29793 | -4/Proximity Caves | Discovered exit to Factory (range 5) 29928 | -4/Proximity Caves | Entered Factory 29928 | -4/Factory | Evolved 2 slots: Propulsion x1, Utility x1 30218 | -4/Factory | Discovered new exit (range 8) 30222 | -4/Factory | Fabricated Lrn. Sensor Array? 30409 | -4/Factory | Fabricated P-60 Hacker? 30413 | -4/Factory | Identified exit to Upper Caves 30680 | -4/Factory | Entered Upper Caves 31014 | -4/Upper Caves | Learned Research non-interactive machine intel 31016 | -4/Upper Caves | Build established: Scavenger-Skirmisher 31622 | -4/Upper Caves | Discovered new exit (range 10) 31637 | -4/Upper Caves | A Derelict revealed a hidden shortcut to "reach the base" 31646 | -4/Upper Caves | Identified exit to Warlord 31653 | -4/Upper Caves | Identified exit to Upper Caves 31655 | -4/Upper Caves | Entered another Upper Caves area 31939 | -4/Upper Caves | Discovered new exit (range 22) 32069 | -4/Upper Caves | Learned 12 Research zone layouts 32505 | -4/Upper Caves | Build established: Scavenger-Mutant 32716 | -4/Upper Caves | Spotted B-86 Titan 33088 | -4/Upper Caves | Entered Warlord 33161 | -4/Warlord | Discovered new exit (range 8) 33220 | -4/Warlord | System corruption cleaned by Quarantine Array 33344 | -4/Warlord | Attacked by Warlord forces 33344 | -4/Warlord | Spotted KL-EFQ(B) 33344 | -4/Warlord | Spotted V6-27D(B) 33405 | -4/Warlord | Spotted 0J-ACY(g) 33415 | -4/Warlord | Lost 5 parts (1n2u2w) 33460 | -4/Warlord | Core integrity fell below 50% 33467 | -4/Warlord | Destroyed KL-EFQ(B) 33470 | -4/Warlord | Self-destructed Last Messages --------------- 33462_ Adv. Heat Sink melted. 33462_ Melted Fission Core. 33463_ 4B-7O1(Y) critical meltdown. 33463_ Imp. Targeting Computer melted. 33463_ Adv. Heat Sink melted. 33463_ Rnf. Fission Core melted. 33463_ KL-EFQ(B) heat damages Spk. Medium Treads. 33463_ The unstable cave ceiling collapses. 33463_ 0J-ACY(g) overheating. 33464_ Knocked back. 33466_ Overheating: Hcp. Storage Unit damaged (-25). 33466_ Destroyed Spk. Medium Treads. 33466_ Melted Hvy. Armor Plating. 33466_ Melted Spk. Medium Treads. 33466_ Firepult destroyed. 33467_ KL-EFQ(B) critical meltdown. 33467_ 0J-ACY(g) overheating. 33467_ Hcp. Storage Unit destroyed. 33468_ 0J-ACY(g) overheating. 33470_ 0J-ACY(g) heat short circuits Beamcaster. Map ----- +----------------------------------------------------+ | | | | | | | | | | | | | | | | | | | | | | | | | | | | | | | | | | | | | | | ?????????????????????????????????????????????????? | | ???????????????????????????????????????#?????????? | | ???????????????????????????????????????????##????? | | ###??????????????###????????????????????#????????? | | ################X#############???????????#?????? | | ^ gYg!% #?????????????????? | | g@! BB#?????????#???????? | | ####/################ #####BB#?????????#???????? | | #??# ????????????####???????????????????????#? | | #??"" ""#???????????#??????????????????????????? | | #??" X"#??????????????????????????????????????? | | #?#"" ""#????#???????????####???????#????#?????? | | #?#"""""#????????????????## ??????????#####???? | | ###?#"""""#?#???????#?????## ????#????## ###?? | | "##??#####????????????????# ????#???## ##? | | #"####"####??#????#???????# ##??#??## < #? | | ## #???????????##??# ##????# #? | | ## = #???????????????# ##????# #?? | | # !% #??????????????#?# #????# #??? | | ## ! #???????????#??#???# ###?#?# #??? | | ## !#???????????#??????## #???#?# #???? | | / ! #???#??????#??#?????## ##??### #????? | | ## #???#?????#?????#????# ##### ###??? | | ## #?#??????#???????????# ###? | | ## [ #???????##??????#????## ### ### ## | | "/####+###????????#????#??#????## ##?# # | | ##?????"?#??????#???#???#### #### # | | ##????""?#????????????????# #?# ## | | ##????#""#????????#???#??#?## ### #? | | "##???#""#??????????????????## ### ## | | ## ""#####""#####??????#?????#?### #### # | +----------------------------------------------------+ Best States ------------- Heat Dissipation 89 Coolant Potential 50 Energy Generation 49 Energy Capacity 1310 Matter Stores 300 Matter Capacity 300 Sight Range 24 Robot Scan Range 20 Terrain Scan Range 24 Terrain Scan Density 10 Jamming Range 16 Armor Coverage 900 Resistance: EM 75 Weapon Shielding 100 Phase Shifting 20 Evasion (%) 60 Targeting Accuracy 12 Target Analysis 8 Recoil Reduction 3 Particle Charging 20 Offensive Hacking 20 Defensive Hacking 16 Item Schematics ----------------- Riot Gun | -7/Zion | Free Battle Rifle | -7/Zion | Free Enh. Flamer | -7/Zion | Free Lrn. Sensor Array | -6/Factory | Hacked Arm. Huge Wheel | -6/Extension | Hacked Adv. Hacking Suite | -5/Factory | Hacked Imp. Arc Thrower | -5/Zhirov | Free Exp. Optical Array | -5/Zhirov | Free Exp. Heat Sink | -5/Zhirov | Free Assault Drone Bay | -5/Zhirov | Free Robot Schematics ------------------ P-60 Hacker | -6/Factory | Hacked Fabricated ------------ Imp. Transmission Jammer | x1 | -7/Factory | Preloaded Lrn. Sensor Array | x1 | -5/Factory Lrn. Sensor Array | x1 | -4/Factory P-60 Hacker | x2 | -4/Factory Alien Tech Used ----------------- Integrated Reactor Achievements -------------- None Challenges ------------ None Game ------ Seed SalvageShadeCharger Manual? 0 Play Time 03:17:22 Cumulative 648.9 hours Start 2021.09.28 @ 20:00:51 End 2021.09.29 @ 17:14:49 Sessions 7 Manual Loads 0 Difficulty Rogue Special Mode None Game No. 378 Rogue 378 Adventurer 0 Explorer 0 Win Type - Total 9 Types 4/2/1/1/1/0/0/0/0 Lore% 90 Gallery% 93 Achievement% 73 Wizard Run 0 Options --------- ASCII 0 Keyboard 0 Movement Mouse Keybinds 1 Fullscreen 2 Font 24/Smallcaps Map View 76x50 Tactical HUD 1 Map Filters NONE Filters NONE Steam 1 RUN: b33034f7-3ccc-4be3-b9fa-4801f7c4eae1